[Event "SM-blixten 2025"]
[Site "Uppsala, Sweden"]
[Date "2025.07.03"]
[Round "11.5"]
[White "Tadjerbashi, Amir"]
[Black "Religa, Marek"]
[Result "1-0"]
[TimeControl "3 min + 2 sec increment starting from move 1"]
[WhiteElo "2235"]
[BlackElo "2227"]

1. e4 {[%clk 00:03:02]} {[%emt 00:00:02]} c5 {[%clk 00:03:04]} 2. Nf3 {[%clk
00:03:03]} {[%emt 00:00:01]} Nf6 {[%clk 00:03:05]} 3. e5 {[%clk 00:03:04]}
{[%emt 00:00:02]} Nd5 {[%clk 00:03:06]} 4. Nc3 {[%clk 00:03:04]} {[%emt
00:00:02]} e6 {[%clk 00:03:08]} 5. g3 {[%clk 00:03:04]} {[%emt 00:00:02]} d6
{[%clk 00:03:05]} {[%emt 00:00:05]} 6. exd6 {[%clk 00:03:04]} {[%emt 00:00:02]}
Bxd6 {[%clk 00:03:05]} {[%emt 00:00:03]} 7. Ne4 {[%clk 00:02:51]} {[%emt
00:00:14]} Be7 {[%clk 00:03:05]} {[%emt 00:00:03]} 8. Bg2 {[%clk 00:02:51]}
{[%emt 00:00:01]} Nc6 {[%clk 00:03:06]} 9. O-O {[%clk 00:02:51]} {[%emt
00:00:02]} O-O {[%clk 00:03:06]} {[%emt 00:00:01]} 10. d3 {[%clk 00:02:49]}
{[%emt 00:00:04]} b6 {[%clk 00:02:56]} {[%emt 00:00:13]} 11. a3 {[%clk
00:02:29]} {[%emt 00:00:22]} Bb7 {[%clk 00:02:57]} {[%emt 00:00:01]} 12. Re1
{[%clk 00:02:30]} {[%emt 00:00:01]} h6 {[%clk 00:02:46]} {[%emt 00:00:13]} 13.
Bd2 {[%clk 00:02:30]} {[%emt 00:00:02]} b5 {[%clk 00:02:28]} {[%emt 00:00:20]}
14. c4 {[%clk 00:02:19]} {[%emt 00:00:14]} bxc4 {[%clk 00:02:23]} {[%emt
00:00:07]} 15. dxc4 {[%clk 00:02:19]} {[%emt 00:00:01]} Nf6 {[%clk 00:02:20]}
{[%emt 00:00:05]} 16. Nc3 {[%clk 00:01:42]} {[%emt 00:00:39]} Qb6 {[%clk
00:01:55]} {[%emt 00:00:27]} 17. Na4 {[%clk 00:01:35]} {[%emt 00:00:09]} Qc7
{[%clk 00:01:49]} {[%emt 00:00:08]} 18. Bf4 {[%clk 00:01:31]} {[%emt 00:00:06]}
Qc8 {[%clk 00:01:39]} {[%emt 00:00:12]} 19. Qb3 {[%clk 00:01:28]} {[%emt
00:00:05]} Rd8 {[%clk 00:00:38]} {[%emt 00:01:04]} 20. Rad1 {[%clk 00:01:28]}
{[%emt 00:00:01]} Nd4 {[%clk 00:00:24]} {[%emt 00:00:16]} 21. Nxd4 {[%clk
00:01:25]} {[%emt 00:00:05]} Bxg2 {[%clk 00:00:25]} {[%emt 00:00:01]} 22. Kxg2
{[%clk 00:00:35]} {[%emt 00:00:52]} cxd4 {[%clk 00:00:27]} {[%emt 00:00:01]} 23.
Qb5 {[%clk 00:00:17]} {[%emt 00:00:19]} a6 {[%clk 00:00:21]} {[%emt 00:00:08]}
24. Qa5 {[%clk 00:00:15]} {[%emt 00:00:04]} Qxc4 {[%clk 00:00:14]} {[%emt
00:00:09]} 25. Nb6 {[%clk 00:00:15]} {[%emt 00:00:01]} Qc6+ {[%clk 00:00:15]}
{[%emt 00:00:01]} 26. Kg1 {[%clk 00:00:15]} {[%emt 00:00:02]} Ra7 {[%clk
00:00:16]} {[%emt 00:00:02]} 27. Rc1 {[%clk 00:00:14]} {[%emt 00:00:03]} Qf3
{[%clk 00:00:16]} {[%emt 00:00:01]} 28. Nc8 {[%clk 00:00:10]} {[%emt 00:00:06]}
Ng4 {[%clk 00:00:04]} {[%emt 00:00:15]} 29. Nxe7+ {[%clk 00:00:10]} {[%emt
00:00:02]} Kh7 {[%clk 00:00:06]} 30. Qd2 {[%clk 00:00:06]} {[%emt 00:00:06]}
Rxe7 {[%clk 00:00:06]} {[%emt 00:00:02]} 31. h3 {[%clk 00:00:07]} Nf6 {[%clk
00:00:08]} 32. Be5 {[%clk 00:00:09]} {[%emt 00:00:01]} Qd5 {[%clk 00:00:08]}
{[%emt 00:00:02]} 33. Bxf6 {[%clk 00:00:09]} {[%emt 00:00:01]} gxf6 {[%clk
00:00:09]} {[%emt 00:00:01]} 34. Qd3+ {[%emt 00:00:05]} Qf5 {[%clk 00:00:05]}
{[%emt 00:00:03]} 35. Qxf5+ exf5 {[%clk 00:00:06]} 36. Rxe7 {[%clk 00:00:10]}
{[%emt 00:00:01]} Kg6 {[%clk 00:00:08]} {[%emt 00:00:01]} 37. Rd1 {[%clk
00:00:11]} {[%emt 00:00:01]} d3 {[%clk 00:00:09]} 38. Re3 {[%emt 00:00:02]} d2
39. Re2 {[%clk 00:00:13]} {[%emt 00:00:01]} Rc8 {[%clk 00:00:12]} 40. Rexd2
{[%clk 00:00:14]} {[%emt 00:00:02]} Rc4 {[%clk 00:00:13]} 41. Rd4 {[%clk
00:00:14]} {[%emt 00:00:02]} Rc2 {[%clk 00:00:15]} 42. Rb4 {[%clk 00:00:15]} a5
{[%clk 00:00:16]} 43. Rb5 {[%clk 00:00:15]} {[%emt 00:00:02]} a4 {[%clk
00:00:18]} 44. Rd4 {[%clk 00:00:16]} {[%emt 00:00:02]} Rc1+ {[%clk 00:00:18]}
{[%emt 00:00:01]} 45. Kg2 {[%clk 00:00:17]} {[%emt 00:00:01]} Rc2 {[%clk
00:00:19]} 46. Rxa4 {[%clk 00:00:17]} {[%emt 00:00:02]} Rxb2 {[%clk 00:00:20]}
{[%emt 00:00:01]} 47. Rxb2 {[%clk 00:00:18]} 1-0

[Event "SM-blixten 2025"]
[Site "Uppsala, Sweden"]
[Date "2025.07.03"]
[Round "1.10"]
[White "Ziegler, Ari"]
[Black "Akeborg, Jonatan"]
[Result "1-0"]
[TimeControl "3 min + 2 sec increment starting from move 1"]
[WhiteTitle "IM"]
[WhiteElo "2297"]
[BlackElo "1920"]

1. d4 {[%clk 00:03:02]} d5 {[%clk 00:03:00]} {[%emt 00:00:05]} 2. c4 {[%clk
00:03:03]} {[%emt 00:00:01]} c6 {[%clk 00:03:00]} {[%emt 00:00:02]} 3. Nc3
{[%clk 00:03:04]} {[%emt 00:00:01]} Nf6 {[%clk 00:03:01]} {[%emt 00:00:01]} 4.
e3 {[%clk 00:03:05]} {[%emt 00:00:01]} Bf5 {[%clk 00:03:00]} {[%emt 00:00:03]}
5. cxd5 {[%clk 00:03:05]} {[%emt 00:00:01]} cxd5 {[%clk 00:03:01]} {[%emt
00:00:01]} 6. Qb3 {[%clk 00:03:06]} {[%emt 00:00:01]} Qd7 {[%clk 00:02:28]}
{[%emt 00:00:35]} 7. Nf3 {[%clk 00:03:02]} {[%emt 00:00:05]} Nc6 {[%clk
00:02:20]} {[%emt 00:00:10]} 8. Bb5 {[%clk 00:03:01]} {[%emt 00:00:03]} e6
{[%clk 00:01:48]} {[%emt 00:00:36]} 9. Ne5 {[%clk 00:03:01]} {[%emt 00:00:02]}
Qc7 {[%clk 00:01:48]} {[%emt 00:00:01]} 10. Qa4 {[%clk 00:02:51]} {[%emt
00:00:12]} Rc8 {[%clk 00:01:33]} {[%emt 00:00:17]} 11. Qxa7 {[%clk 00:01:42]}
{[%emt 00:01:12]} Bd6 {[%clk 00:01:33]} {[%emt 00:00:01]} 12. Nxc6 {[%clk
00:01:18]} {[%emt 00:00:26]} bxc6 {[%clk 00:01:33]} {[%emt 00:00:02]} 13. Qxc7
{[%clk 00:01:18]} {[%emt 00:00:02]} Rxc7 {[%clk 00:01:33]} {[%emt 00:00:02]} 14.
Be2 {[%clk 00:01:13]} {[%emt 00:00:07]} Ke7 {[%clk 00:01:29]} {[%emt 00:00:06]}
15. f3 {[%clk 00:01:08]} {[%emt 00:00:07]} c5 {[%clk 00:01:27]} {[%emt
00:00:04]} 16. Nb5 {[%clk 00:00:56]} {[%emt 00:00:13]} Rc6 {[%clk 00:01:21]}
{[%emt 00:00:08]} 17. Nxd6 {[%clk 00:00:55]} {[%emt 00:00:04]} Kxd6 {[%clk
00:01:22]} {[%emt 00:00:02]} 18. dxc5+ {[%clk 00:00:29]} {[%emt 00:00:28]} Rxc5
{[%clk 00:01:22]} {[%emt 00:00:01]} 19. b3 {[%clk 00:00:26]} {[%emt 00:00:06]}
Rc2 {[%clk 00:01:10]} {[%emt 00:00:13]} 20. g4 {[%clk 00:00:19]} {[%emt
00:00:09]} Bg6 {[%clk 00:01:10]} {[%emt 00:00:02]} 21. Bd2 {[%clk 00:00:17]}
{[%emt 00:00:04]} Rhc8 {[%clk 00:01:05]} {[%emt 00:00:07]} 22. h4 {[%clk
00:00:16]} {[%emt 00:00:03]} h5 {[%clk 00:00:53]} {[%emt 00:00:14]} 23. g5
{[%clk 00:00:18]} {[%emt 00:00:01]} Nd7 {[%clk 00:00:47]} {[%emt 00:00:08]} 24.
a4 {[%clk 00:00:19]} Ne5 {[%clk 00:00:36]} {[%emt 00:00:12]} 25. a5 {[%clk
00:00:14]} {[%emt 00:00:07]} Bd3 {[%clk 00:00:27]} {[%emt 00:00:11]} 26. a6
{[%clk 00:00:11]} {[%emt 00:00:06]} Bxe2 {[%clk 00:00:27]} {[%emt 00:00:02]} 27.
Kxe2 {[%clk 00:00:12]} {[%emt 00:00:01]} Ra8 {[%clk 00:00:25]} {[%emt
00:00:03]} 28. Rhc1 {[%clk 00:00:09]} {[%emt 00:00:05]} Rb2 {[%clk 00:00:19]}
{[%emt 00:00:07]} 29. Ra3 {[%clk 00:00:08]} {[%emt 00:00:04]} Nc6 {[%clk
00:00:17]} {[%emt 00:00:03]} 30. Kd1 {[%clk 00:00:06]} {[%emt 00:00:05]} Na7
{[%clk 00:00:14]} {[%emt 00:00:06]} 31. Bb4+ {[%clk 00:00:06]} {[%emt
00:00:02]} Kd7 {[%clk 00:00:15]} {[%emt 00:00:01]} 32. Rc2 {[%clk 00:00:07]}
{[%emt 00:00:01]} Rb1+ {[%clk 00:00:14]} {[%emt 00:00:02]} 33. Kd2 {[%clk
00:00:09]} Nb5 {[%clk 00:00:15]} {[%emt 00:00:02]} 34. Ra5 {[%emt 00:00:03]}
Nc7 {[%clk 00:00:11]} {[%emt 00:00:04]} 35. Ra4 {[%clk 00:00:09]} {[%emt
00:00:02]} Nxa6 {[%clk 00:00:10]} {[%emt 00:00:03]} 36. Bc3 {[%clk 00:00:08]}
{[%emt 00:00:03]} Nc7 {[%clk 00:00:10]} {[%emt 00:00:02]} 37. Rxa8 {[%clk
00:00:09]} {[%emt 00:00:01]} Nxa8 {[%clk 00:00:11]} 38. Bxg7 {[%clk 00:00:11]}
{[%emt 00:00:01]} Rxb3 {[%clk 00:00:11]} {[%emt 00:00:02]} 39. Be5 {[%clk
00:00:12]} Nb6 {[%clk 00:00:11]} {[%emt 00:00:02]} 40. Rc7+ {[%clk 00:00:12]}
{[%emt 00:00:03]} Ke8 {[%clk 00:00:11]} {[%emt 00:00:01]} 41. Bf6 {[%clk
00:00:12]} {[%emt 00:00:03]} Nc4+ {[%clk 00:00:11]} {[%emt 00:00:01]} 42. Kc1
{[%clk 00:00:12]} {[%emt 00:00:02]} Rxe3 {[%clk 00:00:08]} {[%emt 00:00:05]} 43.
f4 {[%clk 00:00:13]} {[%emt 00:00:01]} Rh3 {[%clk 00:00:08]} {[%emt 00:00:02]}
44. Re7+ {[%clk 00:00:13]} {[%emt 00:00:02]} Kf8 {[%clk 00:00:09]} 45. Ra7
{[%clk 00:00:15]} {[%emt 00:00:01]} Ke8 {[%clk 00:00:10]} {[%emt 00:00:01]} 46.
Ra8+ {[%clk 00:00:16]} Kd7 {[%clk 00:00:10]} {[%emt 00:00:01]} 47. Rf8 {[%clk
00:00:17]} Rxh4 48. Rxf7+ Kd6 {[%clk 00:00:05]} {[%emt 00:00:04]} 49. g6 {[%clk
00:00:15]} {[%emt 00:00:05]} Kc5 {[%clk 00:00:05]} {[%emt 00:00:02]} 50. g7
{[%clk 00:00:15]} {[%emt 00:00:02]} Rg4 {[%clk 00:00:05]} {[%emt 00:00:02]} 51.
Rf8 {[%clk 00:00:16]} {[%emt 00:00:02]} Rg1+ {[%clk 00:00:04]} {[%emt
00:00:03]} 52. Kc2 {[%clk 00:00:14]} {[%emt 00:00:03]} Ne3+ {[%clk 00:00:05]}
{[%emt 00:00:01]} 53. Kb3 {[%clk 00:00:13]} {[%emt 00:00:03]} Nf5 {[%clk
00:00:03]} {[%emt 00:00:04]} 54. g8=Q {[%clk 00:00:14]} {[%emt 00:00:01]} Rxg8
{[%clk 00:00:04]} {[%emt 00:00:02]} 55. Rxg8 {[%clk 00:00:15]} {[%emt
00:00:01]} h4 {[%clk 00:00:04]} {[%emt 00:00:01]} 56. Rh8 {[%clk 00:00:15]}
{[%emt 00:00:02]} 1-0

[Event "SM-blixten 2025"]
[Site "Uppsala, Sweden"]
[Date "2025.07.03"]
[Round "3.6"]
[White "Malmstig, Erik"]
[Black "Agrest, Simon"]
[Result "1-0"]
[TimeControl "3 min + 2 sec increment starting from move 1"]
[WhiteTitle "FM"]
[WhiteElo "2231"]
[BlackElo "2006"]

1. d4 {[%clk 00:03:02]} {[%emt 00:00:01]} Nf6 {[%clk 00:03:03]} {[%emt
00:00:01]} 2. c4 {[%clk 00:03:03]} {[%emt 00:00:01]} g6 {[%clk 00:03:04]} 3.
Nc3 {[%clk 00:03:04]} Bg7 {[%clk 00:03:03]} {[%emt 00:00:03]} 4. e4 {[%clk
00:03:05]} {[%emt 00:00:01]} d6 {[%clk 00:03:04]} {[%emt 00:00:02]} 5. Nge2
{[%clk 00:03:05]} O-O {[%clk 00:03:03]} {[%emt 00:00:03]} 6. Ng3 {[%clk
00:03:06]} {[%emt 00:00:01]} Nc6 {[%clk 00:02:37]} {[%emt 00:00:27]} 7. d5
{[%clk 00:03:04]} {[%emt 00:00:04]} Ne5 {[%clk 00:02:38]} {[%emt 00:00:02]} 8.
Be2 {[%clk 00:03:04]} {[%emt 00:00:01]} c6 {[%clk 00:02:27]} {[%emt 00:00:14]}
9. h3 {[%clk 00:03:02]} {[%emt 00:00:04]} cxd5 {[%clk 00:02:25]} {[%emt
00:00:05]} 10. cxd5 {[%clk 00:02:58]} {[%emt 00:00:05]} Re8 {[%clk 00:02:16]}
{[%emt 00:00:11]} 11. f4 {[%clk 00:02:55]} {[%emt 00:00:05]} Ned7 {[%clk
00:02:16]} {[%emt 00:00:02]} 12. O-O {[%clk 00:02:55]} {[%emt 00:00:02]} a5
{[%clk 00:02:08]} {[%emt 00:00:09]} 13. Be3 {[%clk 00:02:50]} {[%emt 00:00:07]}
b6 {[%clk 00:01:37]} {[%emt 00:00:34]} 14. Rc1 {[%clk 00:02:47]} {[%emt
00:00:05]} Nc5 {[%clk 00:01:29]} {[%emt 00:00:09]} 15. Kh1 {[%clk 00:02:09]}
{[%emt 00:00:39]} h5 {[%clk 00:01:28]} {[%emt 00:00:04]} 16. Bf3 {[%clk
00:02:06]} {[%emt 00:00:05]} Ba6 {[%clk 00:01:23]} {[%emt 00:00:07]} 17. Rg1
{[%clk 00:02:07]} {[%emt 00:00:01]} Rc8 {[%clk 00:01:01]} {[%emt 00:00:24]} 18.
Nge2 {[%clk 00:02:05]} {[%emt 00:00:04]} e6 {[%clk 00:00:58]} {[%emt 00:00:06]}
19. dxe6 {[%clk 00:01:54]} {[%emt 00:00:12]} Rxe6 {[%clk 00:00:52]} {[%emt
00:00:08]} 20. Bxc5 {[%clk 00:01:47]} {[%emt 00:00:09]} dxc5 {[%clk 00:00:46]}
{[%emt 00:00:08]} 21. e5 {[%clk 00:01:48]} {[%emt 00:00:02]} Ne8 {[%clk
00:00:22]} {[%emt 00:00:26]} 22. Bd5 {[%clk 00:01:45]} {[%emt 00:00:04]} Re7
{[%clk 00:00:20]} {[%emt 00:00:04]} 23. Qc2 {[%clk 00:01:39]} {[%emt 00:00:08]}
Nc7 {[%clk 00:00:20]} {[%emt 00:00:02]} 24. Rgd1 {[%clk 00:01:33]} {[%emt
00:00:08]} Nxd5 {[%clk 00:00:13]} {[%emt 00:00:09]} 25. Nxd5 {[%clk 00:01:33]}
{[%emt 00:00:02]} Rd7 {[%clk 00:00:13]} {[%emt 00:00:03]} 26. Nec3 {[%clk
00:01:32]} {[%emt 00:00:02]} Rb8 {[%clk 00:00:06]} {[%emt 00:00:09]} 27. Ne3
{[%clk 00:01:26]} {[%emt 00:00:08]} Rxd1+ {[%clk 00:00:05]} {[%emt 00:00:03]}
28. Rxd1 {[%clk 00:01:27]} {[%emt 00:00:01]} Qh4 {[%clk 00:00:07]} 29. Ncd5
{[%clk 00:01:21]} {[%emt 00:00:08]} Bb7 {[%clk 00:00:05]} {[%emt 00:00:03]} 30.
Rf1 {[%clk 00:01:16]} {[%emt 00:00:06]} Rd8 {[%clk 00:00:05]} {[%emt 00:00:03]}
31. Qb3 {[%clk 00:01:08]} {[%emt 00:00:10]} Bh6 {[%clk 00:00:04]} {[%emt
00:00:03]} 32. Nf6+ {[%clk 00:01:03]} {[%emt 00:00:08]} Kg7 {[%clk 00:00:04]}
{[%emt 00:00:02]} 33. Ned5 {[%clk 00:01:01]} {[%emt 00:00:03]} Bxd5 {[%clk
00:00:05]} {[%emt 00:00:01]} 34. Nxd5 {[%clk 00:01:02]} {[%emt 00:00:02]} Rb8
{[%clk 00:00:05]} {[%emt 00:00:02]} 35. e6 {[%clk 00:00:58]} {[%emt 00:00:06]}
fxe6 {[%clk 00:00:05]} {[%emt 00:00:02]} 36. Nc7 {[%clk 00:00:54]} {[%emt
00:00:05]} Qf6 {[%clk 00:00:04]} {[%emt 00:00:02]} 37. Nxe6+ {[%clk 00:00:51]}
{[%emt 00:00:06]} Kh8 {[%clk 00:00:04]} {[%emt 00:00:02]} 38. Nxc5 {[%clk
00:00:52]} {[%emt 00:00:02]} Bg7 {[%clk 00:00:04]} {[%emt 00:00:01]} 39. Nd7
{[%clk 00:00:52]} {[%emt 00:00:02]} Qd6 {[%clk 00:00:04]} {[%emt 00:00:03]} 40.
Nxb8 Qxb8 {[%clk 00:00:04]} 41. Qe6 {[%clk 00:00:52]} {[%emt 00:00:03]} Qc7
{[%clk 00:00:04]} {[%emt 00:00:03]} 42. Qxg6 {[%clk 00:00:52]} {[%emt
00:00:02]} Qc5 {[%clk 00:00:05]} {[%emt 00:00:01]} 43. f5 {[%clk 00:00:52]}
{[%emt 00:00:02]} Qc4 {[%clk 00:00:04]} {[%emt 00:00:03]} 44. Qxh5+ {[%clk
00:00:51]} {[%emt 00:00:02]} Kg8 {[%clk 00:00:05]} 45. Re1 {[%clk 00:00:50]}
{[%emt 00:00:04]} Qb4 {[%clk 00:00:03]} {[%emt 00:00:04]} 46. Re8+ {[%clk
00:00:50]} {[%emt 00:00:02]} 1-0

[Event "SM-blixten 2025"]
[Site "Uppsala, Sweden"]
[Date "2025.07.03"]
[Round "5.2"]
[White "Angulo Salinas, Julio Osvaldo"]
[Black "Carlsson, Ludvig"]
[Result "0-1"]
[TimeControl "3 min + 2 sec increment starting from move 1"]
[BlackTitle "IM"]
[WhiteElo "1994"]
[BlackElo "2386"]

1. e4 {[%clk 00:03:03]} {[%emt 00:02:43]} e5 {[%clk 00:03:03]} {[%emt
00:00:01]} 2. Nf3 {[%clk 00:03:05]} Nf6 {[%clk 00:03:04]} 3. Nxe5 {[%clk
00:03:04]} {[%emt 00:00:03]} d6 {[%clk 00:03:06]} {[%emt 00:00:01]} 4. Nf3
{[%clk 00:03:05]} Nxe4 {[%clk 00:03:07]} {[%emt 00:00:01]} 5. Nc3 {[%clk
00:03:06]} {[%emt 00:00:01]} Nxc3 {[%clk 00:03:07]} {[%emt 00:00:01]} 6. dxc3
{[%clk 00:03:07]} {[%emt 00:00:01]} Nc6 {[%clk 00:03:08]} {[%emt 00:00:02]} 7.
Bd3 {[%clk 00:03:08]} {[%emt 00:00:01]} Be7 {[%clk 00:03:07]} {[%emt 00:00:02]}
8. Be3 {[%clk 00:03:09]} {[%emt 00:00:02]} Bg4 {[%clk 00:03:08]} {[%emt
00:00:01]} 9. Qd2 {[%clk 00:03:09]} {[%emt 00:00:01]} Bxf3 {[%clk 00:03:08]}
{[%emt 00:00:03]} 10. gxf3 {[%clk 00:03:10]} Qd7 {[%clk 00:03:08]} {[%emt
00:00:02]} 11. Rg1 {[%clk 00:02:56]} {[%emt 00:00:16]} g6 {[%clk 00:03:09]}
{[%emt 00:00:02]} 12. O-O-O {[%clk 00:02:52]} {[%emt 00:00:05]} Qe6 {[%clk
00:03:04]} {[%emt 00:00:06]} 13. Kb1 {[%clk 00:02:51]} {[%emt 00:00:04]} Ne5
{[%clk 00:02:56]} {[%emt 00:00:10]} 14. Be4 {[%clk 00:02:48]} {[%emt 00:00:05]}
c6 {[%clk 00:02:54]} {[%emt 00:00:04]} 15. f4 {[%clk 00:02:41]} {[%emt
00:00:10]} Nc4 {[%clk 00:02:49]} {[%emt 00:00:06]} 16. Qd4 {[%clk 00:02:23]}
{[%emt 00:00:20]} Bf6 {[%clk 00:02:49]} {[%emt 00:00:02]} 17. Qd3 {[%clk
00:02:24]} {[%emt 00:00:01]} Nxe3 {[%clk 00:02:44]} {[%emt 00:00:07]} 18. fxe3
{[%clk 00:02:24]} {[%emt 00:00:02]} d5 {[%clk 00:02:39]} {[%emt 00:00:07]} 19.
Bf3 {[%clk 00:02:23]} {[%emt 00:00:03]} Be7 {[%clk 00:02:34]} {[%emt 00:00:08]}
20. e4 {[%clk 00:02:21]} {[%emt 00:00:04]} dxe4 {[%clk 00:02:34]} {[%emt
00:00:01]} 21. Bxe4 {[%clk 00:02:20]} {[%emt 00:00:03]} Rd8 {[%clk 00:02:21]}
{[%emt 00:00:14]} 22. Qf3 {[%clk 00:02:20]} {[%emt 00:00:03]} O-O {[%clk
00:02:14]} {[%emt 00:00:09]} 23. Rxd8 {[%clk 00:02:16]} {[%emt 00:00:07]} Rxd8
{[%clk 00:02:12]} {[%emt 00:00:03]} 24. f5 {[%clk 00:02:17]} {[%emt 00:00:01]}
Qf6 {[%clk 00:02:09]} {[%emt 00:00:05]} 25. fxg6 {[%clk 00:02:16]} {[%emt
00:00:03]} hxg6 {[%clk 00:02:10]} {[%emt 00:00:01]} 26. Qh5 {[%clk 00:01:23]}
{[%emt 00:00:54]} Kg7 {[%clk 00:02:11]} {[%emt 00:00:02]} 27. Bd3 {[%clk
00:01:11]} {[%emt 00:00:14]} Rh8 {[%clk 00:02:08]} {[%emt 00:00:04]} 28. Qe2
{[%clk 00:01:12]} {[%emt 00:00:01]} Bd6 {[%clk 00:02:06]} {[%emt 00:00:05]} 29.
Rf1 {[%clk 00:01:12]} {[%emt 00:00:02]} Rxh2 {[%clk 00:01:45]} {[%emt
00:00:23]} 30. Qe8 {[%clk 00:01:11]} {[%emt 00:00:02]} Qe7 {[%clk 00:01:16]}
{[%emt 00:00:31]} 31. Qa8 {[%clk 00:01:11]} {[%emt 00:00:02]} Bc5 {[%clk
00:01:01]} {[%emt 00:00:17]} 32. Qb8 {[%clk 00:01:12]} {[%emt 00:00:02]} Rh8
{[%clk 00:00:57]} {[%emt 00:00:05]} 33. Qf4 {[%clk 00:01:09]} {[%emt 00:00:05]}
b5 {[%clk 00:00:48]} {[%emt 00:00:12]} 34. a4 {[%clk 00:01:06]} {[%emt
00:00:04]} a6 {[%clk 00:00:49]} 35. axb5 axb5 {[%clk 00:00:51]} 36. Qf3 {[%clk
00:01:01]} {[%emt 00:00:08]} Qe6 {[%clk 00:00:37]} {[%emt 00:00:15]} 37. Be4
{[%clk 00:00:57]} {[%emt 00:00:06]} Rc8 {[%clk 00:00:27]} {[%emt 00:00:13]} 38.
Qg2 {[%clk 00:00:57]} {[%emt 00:00:01]} Rc7 {[%clk 00:00:24]} {[%emt 00:00:05]}
39. Bf5 {[%clk 00:00:47]} {[%emt 00:00:12]} Qe5 {[%clk 00:00:19]} {[%emt
00:00:07]} 40. Be4 {[%clk 00:00:36]} {[%emt 00:00:13]} b4 {[%clk 00:00:19]}
{[%emt 00:00:03]} 41. cxb4 {[%clk 00:00:35]} {[%emt 00:00:03]} Bxb4 {[%clk
00:00:20]} {[%emt 00:00:01]} 42. Bxc6 {[%clk 00:00:31]} {[%emt 00:00:06]} Ra7
{[%clk 00:00:13]} {[%emt 00:00:08]} 43. Bd5 {[%clk 00:00:29]} {[%emt 00:00:05]}
f5 {[%clk 00:00:12]} {[%emt 00:00:03]} 44. Rg1 {[%clk 00:00:22]} {[%emt
00:00:08]} Qf6 {[%clk 00:00:12]} {[%emt 00:00:02]} 45. Bb3 {[%clk 00:00:19]}
{[%emt 00:00:05]} Re7 {[%clk 00:00:09]} {[%emt 00:00:05]} 46. Rd1 {[%clk
00:00:19]} {[%emt 00:00:02]} Bd6 {[%clk 00:00:10]} {[%emt 00:00:02]} 47. Qc6
{[%clk 00:00:18]} {[%emt 00:00:03]} Be5 {[%clk 00:00:10]} {[%emt 00:00:01]} 48.
Qc8 {[%clk 00:00:13]} {[%emt 00:00:07]} Bxb2 {[%clk 00:00:09]} {[%emt
00:00:03]} 49. Qg8+ {[%clk 00:00:13]} {[%emt 00:00:02]} Kh6 {[%clk 00:00:11]}
{[%emt 00:00:01]} 50. Rh1+ {[%clk 00:00:13]} {[%emt 00:00:02]} Kg5 {[%clk
00:00:12]} 51. Rg1+ {[%clk 00:00:14]} {[%emt 00:00:02]} Kf4 {[%clk 00:00:07]}
{[%emt 00:00:06]} 52. Qxg6 {[%clk 00:00:10]} {[%emt 00:00:05]} Re1+ {[%clk
00:00:06]} {[%emt 00:00:04]} 53. Ka2 {[%clk 00:00:10]} {[%emt 00:00:02]} Ra1+
{[%clk 00:00:06]} {[%emt 00:00:02]} 54. Rxa1 {[%clk 00:00:11]} {[%emt
00:00:01]} Qxg6 {[%clk 00:00:07]} {[%emt 00:00:01]} 55. Kxb2 {[%clk 00:00:12]}
{[%emt 00:00:01]} Qf6+ {[%clk 00:00:09]} 56. Kb1 {[%clk 00:00:13]} {[%emt
00:00:01]} Ke3 {[%clk 00:00:10]} {[%emt 00:00:01]} 57. Ra3 {[%clk 00:00:14]}
{[%emt 00:00:01]} Kd2 {[%clk 00:00:10]} {[%emt 00:00:01]} 58. Ra4 {[%clk
00:00:12]} {[%emt 00:00:04]} f4 {[%clk 00:00:11]} {[%emt 00:00:02]} 59. Ra7
{[%clk 00:00:05]} {[%emt 00:00:08]} f3 {[%clk 00:00:11]} {[%emt 00:00:02]} 60.
Rf7 {[%clk 00:00:06]} {[%emt 00:00:01]} Qc6 {[%clk 00:00:08]} {[%emt 00:00:05]}
61. Rf5 {[%clk 00:00:05]} {[%emt 00:00:04]} Ke1 {[%clk 00:00:07]} {[%emt
00:00:02]} 62. Bd5 {[%clk 00:00:04]} {[%emt 00:00:03]} Qb5+ {[%clk 00:00:09]}
{[%emt 00:00:01]} 63. Kc1 {[%clk 00:00:03]} {[%emt 00:00:03]} f2 {[%clk
00:00:08]} {[%emt 00:00:02]} 64. Re5 {[%clk 00:00:03]} {[%emt 00:00:02]} Kf1
{[%clk 00:00:08]} {[%emt 00:00:02]} 65. Rg5 {[%emt 00:00:04]} 0-1